[Event "FIDE WCCC U8 2018"]
[Site "Santiago de Compostela"]
[Date "2018.11.13"]
[Round "9"]
[White "Mamedov, Edgar"]
[Black "Yonal, Timur"]
[Result "1-0"]
[ECO "A48"]
[WhiteElo "1599"]
[BlackElo "1524"]
[Annotator "NA RC"]
[PlyCount "113"]
[EventDate "2018.11.04"]
[EventType "swiss"]
[EventCountry "ESP"]
[SourceTitle "playchess.com"]
[Source "ChessBase"]
[SourceQuality "1"]
[TimeControl "40/5400+30:1800+30"]

1. d4 {[%emt 0:00:00]} Nf6 {[%emt 0:01:00]} 2. Nf3 {[%emt 0:00:00]} g6 {[%emt 0:01:26]} 3. Bf4 {[%emt 0:00:13]} Bg7 {[%emt 0:00:53]} 4. e3 {[%emt 0:00:58]} d6 {[%emt 0:00:29]} 5. h3 {[%emt 0:00:23]} O-O {[%emt 0:00:07]} 6. Be2 {[%emt 0:00:41]} c5 {[%emt 0:00:52]} 7. c3 {[%emt 0:00:17]} cxd4 {[%emt 0:22:04]} 8. exd4 {[%emt 0:00:30]} d5 {[%emt 0:00:29]} 9. O-O {[%emt 0:01:40]} Nc6 {[%emt 0:00:11]} 10. Nbd2 {[%emt 0:00:25]} Bf5 {[%emt 0:01:19]} 11. Re1 {[%emt 0:02:07]} Rc8 {[%emt 0:06:12]} 12. Bf1 {[%emt 0:04:15]} a6 {[%emt 0:04:28]} 13. a4 {[%emt 0:03:55]} Na5 {[%emt 0:03:03]} 14. Qe2 {[%emt 0:05:07]} Re8 {[%emt 0:03:06]} 15. Ne5 {[%emt 0:02:43]} Nc6 {[%emt 0:07:52]} 16. Qe3 {[%emt 0:10:48]} Qb6 {[%emt 0:04:09]} 17. b4 {[%emt 0:05:38]} Nd7 {[%emt 0:02:30]} 18. Nxd7 {[%emt 0:13:00]} Bxd7 {[%emt 0:00:12]} 19. Nb3 {[%emt 0:03:40]} Bf5 {[%emt 0:07:58]} 20. a5 {[%emt 0:03:23]} Qa7 {[%emt 0:01:53]} 21. b5 {[%emt 0:02:31]} axb5 {[%emt 0:00:15]} 22. Bxb5 {[%emt 0:00:13]} e5 {[%emt 0:02:20]} 23. dxe5 {[%emt 0:00:54]} Qxe3 {[%emt 0:00:10]} 24. Rxe3 {[%emt 0:00:17]} Re7 {[%emt 0:01:57]} 25. Bxc6 {[%emt 0:01:02]} bxc6 {[%emt 0:00:18]} 26. Nc5 {[%emt 0:07:58]} Ra7 {[%emt 0:02:00]} 27. g4 {[%emt 0:04:35]} Be6 {[%emt 0:00:21]} 28. Ree1 {[%emt 0:05:52]} Bf8 {[%emt 0:02:42]} 29. Be3 {[%emt 0:07:20]} Raa8 {[%emt 0:02:03]} 30. a6 {[%emt 0:00:59]} Rc7 {[%emt 0:00:54]} 31. Reb1 {[%emt 0:04:37]} Bc8 {[%emt 0:01:13]} 32. Nb7 {[%emt 0:04:08]} c5 {[%emt 0:01:15]} 33. Bf4 {[%emt 0:02:02]} Rd7 {[%emt 0:00:17]} 34. Ra5 {[%emt 0:02:04]} d4 {[%emt 0:00:29]} 35. cxd4 {[%emt 0:00:56]} cxd4 {[%emt 0:00:05]} 36. Kf1 {[%emt 0:00:10]} Be7 {[%emt 0:03:56]} 37. g5 {[%emt 0:00:51]} Kg7 {[%emt 0:02:18]} 38. Ke2 {[%emt 0:00:54]} d3+ {[%emt 0:00:27]} 39. Ke1 {[%emt 0:00:20]} Kf8 {[%emt 0:02:47]} 40. Rb6 {[%emt 0:00:00]} Rd4 {[%emt 0:00:00]} 41. Bd2 {[%emt 0:01:28]} Ke8 {[%emt 0:01:14]} 42. Nd6+ {[%emt 0:04:24]} Bxd6 {[%emt 0:00:33]} 43. exd6 {[%emt 0:02:32]} Ra7 {[%emt 0:08:31]} 44. Be3 {[%emt 0:01:58]} Re4 {[%emt 0:00:07]} 45. Kd2 {[%emt 0:01:01]} Kd7 {[%emt 0:00:16]} 46. Kxd3 {[%emt 0:01:10]} Re6 {[%emt 0:00:55]} 47. Kc4 {[%emt 0:04:01]} f6 {[%emt 0:02:51]} 48. Kb5 {[%emt 0:02:31]} Re5+ {[%emt 0:00:23]} 49. Bc5 {[%emt 0:00:12]} fxg5 {[%emt 0:00:17]} 50. Rc6 {[%emt 0:03:12]} h5 {[%emt 0:00:47]} 51. Rxc8 {[%emt 0:01:30]} Kxc8 {[%emt 0:00:16]} 52. Kc6 {[%emt 0:00:08]} Rxc5+ {[%emt 0:01:40]} 53. Kxc5 {[%emt 0:00:09]} h4 {[%emt 0:00:37]} 54. Kb6 {[%emt 0:01:03]} Kb8 {[%emt 0:00:13]} 55. Re5 {[%emt 0:00:32]} Rb7+ {[%emt 0:00:29]} 56. axb7 {[%emt 0:00:16]} g4 {[%emt 0:00:10]} 57. Re8# {[%emt 0:00:05]} 1-0

[Event "FIDE WCCC U8 2018"]
[Site "Santiago de Compostela"]
[Date "2018.11.13"]
[Round "9"]
[White "Balint, Peter"]
[Black "Zverev, Lev"]
[Result "0-1"]
[ECO "C50"]
[WhiteElo "1563"]
[BlackElo "1723"]
[Annotator "NA RC"]
[PlyCount "158"]
[EventDate "2018.11.04"]
[EventType "swiss"]
[EventCountry "ESP"]
[SourceTitle "playchess.com"]
[Source "ChessBase"]
[SourceQuality "1"]
[TimeControl "40/5400+30:1800+30"]

1. e4 {[%emt 0:00:00]} e5 {[%emt 0:00:00]} 2. Nf3 {[%emt 0:00:00]} Nc6 {[%emt 0:00:00]} 3. Bc4 {[%emt 0:00:41]} Bc5 {[%emt 0:00:06]} 4. O-O {[%emt 0:01:13]} Nf6 {[%emt 0:00:07]} 5. d3 {[%emt 0:01:21]} d6 {[%emt 0:00:10]} 6. a4 {[%emt 0:00:42]} a6 {[%emt 0:00:20]} 7. Nbd2 {[%emt 0:01:59]} h6 {[%emt 0:00:16]} 8. h3 {[%emt 0:03:01]} O-O {[%emt 0:00:11]} 9. c3 {[%emt 0:00:23]} Ba7 {[%emt 0:00:05]} 10. Re1 {[%emt 0:00:32]} Ne7 {[%emt 0:00:07]} 11. Nf1 {[%emt 0:02:24]} Ng6 {[%emt 0:00:11]} 12. Ng3 {[%emt 0:03:41]} Be6 {[%emt 0:00:08]} 13. Ba2 {[%emt 0:04:18]} Qd7 {[%emt 0:00:10]} 14. d4 Rad8 {[%emt 0:11:18]} 15. Kh2 {[%emt 0:18:08]} Qc8 {[%emt 0:00:48]} 16. Qc2 {[%emt 0:07:22]} Ne7 {[%emt 0:04:46]} 17. Bxe6 {[%emt 0:10:40]} Qxe6 {[%emt 0:00:14]} 18. Kg1 {[%emt 0:04:03]} Nh7 {[%emt 0:02:38]} 19. Be3 {[%emt 0:05:27]} Bb8 {[%emt 0:03:37]} 20. d5 {[%emt 0:04:17]} Qg6 {[%emt 0:01:08]} 21. Nh4 {[%emt 0:05:05]} Qf6 {[%emt 0:00:08]} 22. Nhf5 {[%emt 0:01:11]} Nxf5 {[%emt 0:00:59]} 23. Nxf5 {[%emt 0:01:23]} Rfe8 {[%emt 0:01:03]} 24. Qe2 {[%emt 0:03:45]} Nf8 {[%emt 0:01:08]} 25. Qg4 {[%emt 0:03:26]} Qg6 {[%emt 0:01:57]} 26. Qxg6 {[%emt 0:04:42]} fxg6 {[%emt 0:00:27]} 27. Ng3 {[%emt 0:02:18]} c6 {[%emt 0:00:21]} 28. c4 {[%emt 0:01:34]} Bc7 {[%emt 0:00:20]} 29. b4 {[%emt 0:02:12]} a5 {[%emt 0:01:40]} 30. b5 {[%emt 0:00:52]} c5 {[%emt 0:01:06]} 31. b6 {[%emt 0:01:14]} Bxb6 {[%emt 0:00:17]} 32. Rab1 {[%emt 0:01:00]} Bc7 {[%emt 0:02:19]} 33. Rxb7 {[%emt 0:01:06]} Rd7 {[%emt 0:00:09]} 34. Reb1 {[%emt 0:01:14]} Bd8 {[%emt 0:01:00]} 35. Bd2 {[%emt 0:01:32]} Rc7 {[%emt 0:01:54]} 36. Rxc7 {[%emt 0:00:50]} Bxc7 {[%emt 0:00:06]} 37. Rb7 {[%emt 0:00:48]} Rc8 {[%emt 0:00:29]} 38. Ne2 {[%emt 0:01:06]} Nd7 {[%emt 0:03:13]} 39. Nc3 {[%emt 0:01:03]} Nb6 {[%emt 0:00:44]} 40. Nb5 {[%emt 0:00:00]} Nxc4 {[%emt 0:00:00]} 41. Nxc7 {[%emt 0:01:14]} Nxd2 {[%emt 0:00:22]} 42. Ne6 {[%emt 0:04:15]} c4 {[%emt 0:00:16]} 43. Rxg7+ {[%emt 0:00:06]} Kh8 {[%emt 0:00:05]} 44. Rxg6 {[%emt 0:00:23]} Nf3+ {[%emt 0:05:47]} 45. gxf3 {[%emt 0:04:35]} c3 {[%emt 0:00:05]} 46. Rxh6+ {[%emt 0:00:53]} Kg8 {[%emt 0:00:07]} 47. Rg6+ {[%emt 0:00:38]} Kh7 {[%emt 0:00:19]} 48. Rg4 {[%emt 0:00:49]} Rg8 {[%emt 0:01:32]} 49. Nf8+ {[%emt 0:03:56]} Kh8 {[%emt 0:00:19]} 50. Ng6+ {[%emt 0:00:32]} Rxg6 {[%emt 0:00:10]} 51. Rxg6 {[%emt 0:00:04]} c2 {[%emt 0:00:05]} 52. Rxd6 {[%emt 0:00:19]} c1=Q+ {[%emt 0:00:12]} 53. Kg2 {[%emt 0:00:24]} Qa3 {[%emt 0:01:06]} 54. Re6 {[%emt 0:01:03]} Qxa4 {[%emt 0:00:13]} 55. Rxe5 {[%emt 0:00:18]} Qd7 {[%emt 0:00:21]} 56. Rh5+ {[%emt 0:01:06]} Kg8 {[%emt 0:00:13]} 57. d6 {[%emt 0:01:13]} a4 {[%emt 0:00:42]} 58. Ra5 {[%emt 0:00:31]} Qg7+ {[%emt 0:01:02]} 59. Kh2 {[%emt 0:00:21]} Qb2 {[%emt 0:04:52]} 60. Rg5+ {[%emt 0:07:12]} Kf7 {[%emt 0:00:12]} 61. Kg3 {[%emt 0:03:01]} Qf6 {[%emt 0:01:21]} 62. Rf5 {[%emt 0:03:07]} Qxf5 {[%emt 0:00:18]} 63. exf5 {[%emt 0:00:10]} a3 {[%emt 0:00:05]} 64. f6 {[%emt 0:00:22]} Kxf6 {[%emt 0:00:07]} 65. d7 {[%emt 0:00:06]} Ke7 {[%emt 0:00:04]} 66. d8=Q+ {[%emt 0:00:28]} Kxd8 {[%emt 0:00:06]} 67. f4 {[%emt 0:00:14]} a2 {[%emt 0:00:06]} 68. f3 {[%emt 0:00:25]} a1=Q {[%emt 0:00:10]} 69. Kg4 {[%emt 0:00:02]} Ke7 {[%emt 0:00:09]} 70. f5 {[%emt 0:00:40]} Kf6 {[%emt 0:00:06]} 71. h4 {[%emt 0:00:46]} Qb1 {[%emt 0:00:08]} 72. f4 {[%emt 0:00:12]} Qxf5+ {[%emt 0:00:07]} 73. Kg3 {[%emt 0:00:03]} Qh5 {[%emt 0:00:09]} 74. Kh3 {[%emt 0:00:10]} Qf3+ {[%emt 0:00:11]} 75. Kh2 {[%emt 0:00:03]} Kf5 {[%emt 0:00:08]} 76. h5 {[%emt 0:00:05]} Kg4 {[%emt 0:00:14]} 77. h6 {[%emt 0:00:06]} Qf2+ {[%emt 0:00:05]} 78. Kh1 {[%emt 0:00:05]} Kg3 {[%emt 0:00:05]} 79. h7 {[%emt 0:00:03]} Qh2# {[%emt 0:00:09]} 0-1

[Event "FIDE WCCC U8 2018"]
[Site "Santiago de Compostela"]
[Date "2018.11.13"]
[Round "9"]
[White "Gordeev, Denis"]
[Black "Hajdu, Marton Abris"]
[Result "1-0"]
[ECO "B20"]
[WhiteElo "1553"]
[BlackElo "1755"]
[Annotator "NA RC"]
[PlyCount "79"]
[EventDate "2018.11.04"]
[EventType "swiss"]
[EventCountry "ESP"]
[SourceTitle "playchess.com"]
[Source "ChessBase"]
[SourceQuality "1"]
[TimeControl "40/5400+30:1800+30"]

1. e4 {[%emt 0:00:00]} c5 {[%emt 0:00:00]} 2. b4 {[%emt 0:00:46]} cxb4 {[%emt 0:00:29]} 3. a3 {[%emt 0:00:53]} d5 {[%emt 0:00:17]} 4. exd5 {[%emt 0:01:41]} Qxd5 {[%emt 0:00:10]} 5. Nf3 {[%emt 0:01:00]} Bg4 {[%emt 0:18:22]} 6. axb4 {[%emt 0:11:22]} Bxf3 {[%emt 0:31:10]} 7. Qxf3 {[%emt 0:00:48]} Qe5+ {[%emt 0:00:46]} 8. Kd1 {[%emt 0:04:23]} Nc6 {[%emt 0:04:24]} 9. Nc3 {[%emt 0:04:16]} Nf6 {[%emt 0:13:43]} 10. h3 {[%emt 0:08:06]} e6 {[%emt 0:03:10]} 11. b5 {[%emt 0:03:25]} Nd4 {[%emt 0:01:03]} 12. Qxb7 {[%emt 0:03:22]} Rb8 {[%emt 0:01:02]} 13. Qxa7 {[%emt 0:01:24]} Bd6 {[%emt 0:01:57]} 14. Bb2 {[%emt 0:03:50]} Bc5 {[%emt 0:02:13]} 15. Qa4 {[%emt 0:02:10]} Qh5+ {[%emt 0:03:36]} 16. Ne2 {[%emt 0:05:18]} Rd8 {[%emt 0:04:28]} 17. b6+ {[%emt 0:05:38]} Ke7 {[%emt 0:01:32]} 18. Ba3 {[%emt 0:02:07]} Ne4 {[%emt 0:02:59]} 19. g4 {[%emt 0:19:15]} Qd5 {[%emt 0:02:41]} 20. Nxd4 {[%emt 0:04:36]} Nxf2+ {[%emt 0:01:38]} 21. Kc1 {[%emt 0:00:42]} Nxh1 {[%emt 0:04:04]} 22. Nc6+ Kf6 {[%emt 0:00:33]} 23. Bb2+ {[%emt 0:09:35]} Kg6 {[%emt 0:00:17]} 24. Bd3+ {[%emt 0:00:27]} Kg5 {[%emt 0:00:28]} 25. Nxd8 {[%emt 0:00:42]} Rxd8 {[%emt 0:00:06]} 26. h4+ {[%emt 0:01:05]} Kxh4 {[%emt 0:00:05]} 27. Qf4 {[%emt 0:00:14]} Ng3 {[%emt 0:00:38]} 28. Be5 {[%emt 0:01:01]} Qh1+ {[%emt 0:00:12]} 29. Kb2 {[%emt 0:00:09]} Ba3+ {[%emt 0:00:32]} 30. Rxa3 {[%emt 0:00:16]} Qg2 {[%emt 0:01:09]} 31. g5+ {[%emt 0:00:38]} Kh5 {[%emt 0:00:11]} 32. Qxg3 {[%emt 0:00:17]} Qxg3 {[%emt 0:00:09]} 33. Bxg3 {[%emt 0:00:05]} Kxg5 {[%emt 0:00:23]} 34. b7 {[%emt 0:00:09]} e5 {[%emt 0:00:06]} 35. Bxe5 {[%emt 0:00:11]} Rxd3 {[%emt 0:00:16]} 36. Rxd3 {[%emt 0:00:12]} Kf5 {[%emt 0:00:38]} 37. b8=Q {[%emt 0:00:08]} h5 {[%emt 0:00:14]} 38. Rf3+ {[%emt 0:00:22]} Ke4 {[%emt 0:00:11]} 39. Rf4+ {[%emt 0:00:08]} Kd5 {[%emt 0:00:07]} 40. Qd6# {[%emt 0:00:00] Ke4} 1-0

[Event "FIDE WCCC U8 2018"]
[Site "Santiago de Compostela"]
[Date "2018.11.13"]
[Round "9"]
[White "Chennareddy, Yuvraj"]
[Black "Chen, Ryo"]
[Result "1-0"]
[ECO "A45"]
[WhiteElo "1497"]
[BlackElo "1573"]
[Annotator "NA RC"]
[PlyCount "83"]
[EventDate "2018.11.04"]
[EventType "swiss"]
[EventCountry "ESP"]
[SourceTitle "playchess.com"]
[Source "ChessBase"]
[SourceQuality "1"]
[TimeControl "40/5400+30:1800+30"]

1. d4 {[%emt 0:00:00]} Nf6 {[%emt 0:00:00]} 2. g3 {[%emt 0:00:00]} g6 {[%emt 0:00:00]} 3. Bg2 {[%emt 0:00:04]} Bg7 {[%emt 0:00:03]} 4. e4 {[%emt 0:00:04]} d6 {[%emt 0:00:26]} 5. Nc3 {[%emt 0:00:27]} O-O {[%emt 0:00:42]} 6. Nge2 {[%emt 0:00:50]} c6 {[%emt 0:04:04]} 7. O-O {[%emt 0:00:49]} b5 {[%emt 0:01:11]} 8. e5 {[%emt 0:00:58]} dxe5 {[%emt 0:07:49]} 9. dxe5 {[%emt 0:00:11]} Nfd7 {[%emt 0:00:28]} 10. Nxb5 {[%emt 0:05:43]} Qb6 {[%emt 0:05:06]} 11. e6 {[%emt 0:06:45]} Qxb5 {[%emt 0:02:17]} 12. exd7 {[%emt 0:00:24]} Bxd7 {[%emt 0:00:37]} 13. a4 {[%emt 0:10:34]} Qb7 {[%emt 0:02:55]} 14. Nc3 Na6 {[%emt 0:01:11]} 15. Qe2 {[%emt 0:06:06]} Be6 {[%emt 0:03:21]} 16. Bd2 {[%emt 0:04:34]} Nb4 {[%emt 0:07:28]} 17. Rac1 {[%emt 0:00:59]} Nd5 {[%emt 0:02:13]} 18. Nxd5 {[%emt 0:01:07]} Bxd5 {[%emt 0:00:13]} 19. Bxd5 {[%emt 0:01:28]} cxd5 {[%emt 0:00:26]} 20. b4 {[%emt 0:00:49]} Rac8 {[%emt 0:01:14]} 21. Rfe1 {[%emt 0:00:50]} e6 {[%emt 0:00:26]} 22. c4 {[%emt 0:08:21]} dxc4 {[%emt 0:03:18]} 23. Rxc4 {[%emt 0:00:11]} Rxc4 {[%emt 0:00:14]} 24. Qxc4 {[%emt 0:00:11]} Qd7 {[%emt 0:00:15]} 25. Qa2 {[%emt 0:00:57]} Rd8 {[%emt 0:00:38]} 26. Be3 {[%emt 0:05:50]} Bc3 {[%emt 0:12:22]} 27. Rb1 {[%emt 0:01:03]} Qb7 {[%emt 0:06:36]} 28. b5 {[%emt 0:10:08]} Rd7 {[%emt 0:10:28]} 29. Qb3 {[%emt 0:03:51]} Ba5 {[%emt 0:02:20]} 30. Rd1 {[%emt 0:03:27]} Bb6 {[%emt 0:02:44]} 31. Rxd7 {[%emt 0:06:02]} Qxd7 {[%emt 0:00:07]} 32. Bxb6 {[%emt 0:00:53]} axb6 {[%emt 0:00:11]} 33. a5 {[%emt 0:09:36]} bxa5 {[%emt 0:03:09]} 34. b6 {[%emt 0:00:59]} a4 {[%emt 0:00:19]} 35. Qb4 {[%emt 0:03:11]} Qb7 {[%emt 0:03:23]} 36. Qc5 {[%emt 0:03:29]} Qd7 {[%emt 0:01:03]} 37. h4 {[%emt 0:04:31]} a3 {[%emt 0:01:30]} 38. Qxa3 {[%emt 0:00:34]} Qd1+ {[%emt 0:00:21]} 39. Kg2 {[%emt 0:00:25]} Qd5+ {[%emt 0:00:24]} 40. Qf3 {[%emt 0:00:00]} Qb5 {[%emt 0:00:00]} 41. Qa8+ {[%emt 0:00:34]} Kg7 {[%emt 0:00:59]} 42. b7 {[%emt 0:00:05]} 1-0

[Event "FIDE WCCC U8 2018"]
[Site "Santiago de Compostela"]
[Date "2018.11.13"]
[Round "9"]
[White "Lafkidis, Apostolos"]
[Black "Golovchenko, Bogdan"]
[Result "0-1"]
[ECO "C45"]
[WhiteElo "1144"]
[BlackElo "1556"]
[Annotator "NA RC"]
[PlyCount "168"]
[EventDate "2018.11.04"]
[EventType "swiss"]
[EventCountry "ESP"]
[SourceTitle "playchess.com"]
[Source "ChessBase"]
[SourceQuality "1"]
[TimeControl "40/5400+30:1800+30"]

1. e4 {[%emt 0:00:00]} e5 {[%emt 0:00:00]} 2. Nf3 {[%emt 0:00:00]} Nc6 {[%emt 0:00:00]} 3. d4 {[%emt 0:00:22]} exd4 {[%emt 0:00:01]} 4. Nxd4 {[%emt 0:00:17]} Bc5 {[%emt 0:00:23]} 5. Be3 {[%emt 0:00:24]} Qf6 {[%emt 0:00:12]} 6. c3 {[%emt 0:00:14]} Nge7 {[%emt 0:00:14]} 7. Qd2 {[%emt 0:01:09]} O-O {[%emt 0:02:41]} 8. Bc4 {[%emt 0:02:31]} Ne5 {[%emt 0:18:31]} 9. Bb3 {[%emt 0:11:01]} Qg6 {[%emt 0:03:14]} 10. f3 {[%emt 0:06:16]} b6 {[%emt 0:04:37]} 11. O-O {[%emt 0:05:12]} Ba6 {[%emt 0:00:39]} 12. Ne2 {[%emt 0:11:42]} Qd6 {[%emt 0:05:53]} 13. Bxc5 {[%emt 0:14:36]} Qxc5+ {[%emt 0:01:56]} 14. Kh1 {[%emt 0:00:26]} Nd3 {[%emt 0:00:49]} 15. h3 {[%emt 0:05:37]} Ng6 {[%emt 0:11:04]} 16. Na3 {[%emt 0:10:23]} Nf2+ {[%emt 0:07:42]} 17. Kh2 {[%emt 0:01:10]} Ne5 {[%emt 0:00:23]} 18. Bc2 {[%emt 0:02:24]} Ned3 {[%emt 0:01:39]} 19. Bxd3 {[%emt 0:01:06]} Nxd3 {[%emt 0:00:02]} 20. Nc2 {[%emt 0:02:03]} Qd6+ {[%emt 0:01:35]} 21. Kg1 {[%emt 0:00:47]} f5 {[%emt 0:02:18]} 22. exf5 {[%emt 0:04:55]} Rxf5 {[%emt 0:03:52]} 23. Ncd4 {[%emt 0:02:20]} Rh5 {[%emt 0:00:34]} 24. b3 {[%emt 0:02:51]} c5 {[%emt 0:07:38]} 25. Nc2 {[%emt 0:01:04]} c4 {[%emt 0:01:42]} 26. Nb4 {[%emt 0:01:11]} Qc5+ {[%emt 0:01:13]} 27. Nd4 {[%emt 0:01:05]} Nxb4 {[%emt 0:01:39]} 28. cxb4 {[%emt 0:00:54]} Qd6 {[%emt 0:00:01]} 29. Rfd1 {[%emt 0:01:40]} Rd5 {[%emt 0:02:15]} 30. b5 {[%emt 0:02:05]} c3 {[%emt 0:05:40]} 31. Qxc3 {[%emt 0:00:49]} Bxb5 {[%emt 0:00:18]} 32. Rd2 {[%emt 0:01:36]} Ba6 {[%emt 0:03:27]} 33. Rad1 {[%emt 0:00:41]} Rc8 {[%emt 0:00:49]} 34. Qe3 {[%emt 0:00:46]} Bb7 {[%emt 0:02:49]} 35. Nf5 {[%emt 0:00:59]} Rxd2 {[%emt 0:00:26]} 36. Qxd2 {[%emt 0:00:57]} Qc5+ {[%emt 0:00:18]} 37. Ne3 {[%emt 0:00:38]} Re8 {[%emt 0:00:18]} 38. Re1 {[%emt 0:00:48]} d5 {[%emt 0:00:30]} 39. Kh1 {[%emt 0:00:43]} d4 {[%emt 0:02:14]} 40. Nc2 {[%emt 0:00:00]} Rxe1+ {[%emt 0:00:00]} 41. Qxe1 {[%emt 0:01:36]} h6 {[%emt 0:03:13]} 42. Qd2 {[%emt 0:00:50]} Qc3 {[%emt 0:00:08]} 43. Qd1 {[%emt 0:03:20]} d3 {[%emt 0:00:33]} 44. Ne3 {[%emt 0:00:36]} d2 {[%emt 0:01:18]} 45. Qe2 {[%emt 0:02:02]} Qxe3 {[%emt 0:00:13]} 46. Qxe3 {[%emt 0:00:34]} d1=Q+ {[%emt 0:00:04]} 47. Kh2 {[%emt 0:00:28]} Qd6+ {[%emt 0:00:02]} 48. Kg1 {[%emt 0:00:42]} Qc5 {[%emt 0:00:04]} 49. Qxc5 {[%emt 0:00:22]} bxc5 {[%emt 0:00:02]} 50. Kf2 {[%emt 0:00:14]} Kf7 {[%emt 0:00:01]} 51. Ke3 {[%emt 0:00:11]} Ke6 {[%emt 0:00:26]} 52. g4 {[%emt 0:00:26]} g5 {[%emt 0:00:11]} 53. f4 {[%emt 0:00:31]} Bg2 {[%emt 0:00:10]} 54. fxg5 {[%emt 0:00:21]} hxg5 {[%emt 0:00:03]} 55. Kf2 {[%emt 0:00:48]} Bxh3 {[%emt 0:00:07]} 56. Kf3 {[%emt 0:00:13]} Ke5 {[%emt 0:00:09]} 57. Kg3 {[%emt 0:00:11]} Bf1 {[%emt 0:00:07]} 58. Kf2 {[%emt 0:00:06]} Bd3 {[%emt 0:00:09]} 59. Ke3 {[%emt 0:00:07]} Bb1 {[%emt 0:00:04]} 60. a3 {[%emt 0:00:10]} Ba2 {[%emt 0:00:05]} 61. b4 {[%emt 0:00:11]} cxb4 {[%emt 0:00:23]} 62. axb4 {[%emt 0:01:23]} a6 {[%emt 0:00:01]} 63. Kd3 {[%emt 0:00:23]} Bd5 {[%emt 0:00:16]} 64. Ke3 {[%emt 0:00:08]} Bc4 {[%emt 0:00:05]} 65. Kf3 {[%emt 0:00:12]} Kd4 {[%emt 0:00:04]} 66. Kf2 {[%emt 0:00:12]} Ke4 {[%emt 0:00:04]} 67. Kg3 {[%emt 0:01:17]} Ke3 {[%emt 0:00:04]} 68. Kg2 {[%emt 0:00:10]} Kf4 {[%emt 0:00:05]} 69. Kh3 {[%emt 0:00:08]} Kf3 {[%emt 0:00:06]} 70. Kh2 {[%emt 0:00:06]} Kxg4 {[%emt 0:00:06]} 71. Kg2 {[%emt 0:00:04]} Bd5+ {[%emt 0:00:03]} 72. Kh2 {[%emt 0:00:07]} Kf3 {[%emt 0:00:11]} 73. Kh3 {[%emt 0:00:07]} Be6+ {[%emt 0:00:23]} 74. Kh2 {[%emt 0:00:09]} g4 {[%emt 0:00:03]} 75. Kh1 {[%emt 0:00:15]} g3 {[%emt 0:00:07]} 76. Kg1 {[%emt 0:00:05]} Bc4 {[%emt 0:01:08]} 77. Kh1 {[%emt 0:00:10]} g2+ {[%emt 0:00:09]} 78. Kg1 {[%emt 0:00:06]} Be6 {[%emt 0:00:48]} 79. b5 {[%emt 0:00:08]} axb5 {[%emt 0:00:05]} 80. Kh2 {[%emt 0:00:05]} b4 {[%emt 0:00:03]} 81. Kg1 {[%emt 0:00:07]} b3 {[%emt 0:00:04]} 82. Kh2 {[%emt 0:00:15]} b2 {[%emt 0:00:03]} 83. Kg1 {[%emt 0:00:18]} b1=Q+ {[%emt 0:00:04]} 84. Kh2 {[%emt 0:00:11]} Qh1# {[%emt 0:00:04]} 0-1

[Event "FIDE WCCC U8 2018"]
[Site "Santiago de Compostela"]
[Date "2018.11.14"]
[Round "10"]
[White "Begmuratov, Khumoyun"]
[Black "Finek, Vaclav"]
[Result "1-0"]
[ECO "B27"]
[WhiteElo "1880"]
[BlackElo "1942"]
[Annotator "NA RC"]
[PlyCount "115"]
[EventDate "2018.11.04"]
[EventType "swiss"]
[EventCountry "ESP"]
[SourceTitle "playchess.com"]
[Source "ChessBase"]
[SourceQuality "1"]
[TimeControl "40/5400+30:1800+30"]

1. e4 {[%emt 0:00:00]} c5 {[%emt 0:00:00]} 2. Nf3 {[%emt 0:00:00]} g6 {[%emt 0:00:05]} 3. d4 {[%emt 0:00:19]} cxd4 {[%emt 0:00:05]} 4. Nxd4 {[%emt 0:00:07]} Bg7 {[%emt 0:01:26]} 5. Nc3 {[%emt 0:00:11]} Nc6 {[%emt 0:01:00]} 6. Nb3 {[%emt 0:00:21]} Nf6 {[%emt 0:01:32]} 7. Be2 {[%emt 0:00:38]} O-O {[%emt 0:01:41]} 8. O-O {[%emt 0:00:11]} d6 {[%emt 0:02:19]} 9. Re1 {[%emt 0:01:22]} Bd7 {[%emt 0:09:32]} 10. Bf1 {[%emt 0:00:41]} Rc8 {[%emt 0:08:46]} 11. Nd5 {[%emt 0:01:23]} Nxd5 {[%emt 0:00:30]} 12. exd5 {[%emt 0:00:30] LiveBook: 6 Games} Ne5 {[%emt 0:00:30]} 13. c3 {[%emt 0:04:13]} Re8 {[%emt 0:08:07]} 14. Bg5 {[%emt 0:21:23]} (14. Bf4 {[%emt 0:21:23]}) 14... b5 {[%emt 0:00:30]} 15. Nd4 {[%emt 0:19:41]} Qb6 {[%emt 0:26:55]} 16. Qb3 {[%emt 0:16:52]} Rb8 {[%emt 0:10:27]} 17. Rad1 {[%emt 0:00:24]} b4 {[%emt 0:11:38]} 18. f4 {[%emt 0:12:43]} bxc3 {[%emt 0:02:05]} 19. Qxb6 {[%emt 0:00:05]} Rxb6 {[%emt 0:00:06]} 20. bxc3 {[%emt 0:01:58]} Ng4 {[%emt 0:00:33]} 21. Bxe7 {[%emt 0:00:30]} Bf6 {[%emt 0:04:31]} 22. Bxf6 {[%emt 0:03:02]} Rxe1 {[%emt 0:00:15]} 23. Rxe1 {[%emt 0:00:12]} Nxf6 {[%emt 0:00:01]} 24. c4 {[%emt 0:06:27]} Rb2 {[%emt 0:01:46]} 25. a3 {[%emt 0:00:12]} Kf8 {[%emt 0:00:54]} 26. Re3 {[%emt 0:02:13]} Ba4 {[%emt 0:03:27]} 27. h3 {[%emt 0:01:21]} h5 {[%emt 0:00:34]} 28. g3 {[%emt 0:00:19]} Ne8 {[%emt 0:01:51]} (28... Bd7 $11) 29. f5 {[%emt 0:00:49]} g5 {[%emt 0:00:30]} 30. Nf3 {[%emt 0:00:49]} f6 {[%emt 0:01:21]} 31. Nd4 {[%emt 0:00:25]} Bd7 {[%emt 0:00:44]} 32. g4 {[%emt 0:00:53]} h4 {[%emt 0:00:15]} 33. Be2 {[%emt 0:01:20]} Kf7 {[%emt 0:00:21]} 34. Kf2 {[%emt 0:01:15]} Rb8 {[%emt 0:00:33]} 35. Nb3 {[%emt 0:01:10]} Rc8 {[%emt 0:00:50]} 36. Rc3 {[%emt 0:00:32]} Ba4 {[%emt 0:00:19]} 37. Nd2 {[%emt 0:00:24]} Ke7 {[%emt 0:00:58]} 38. Ne4 {[%emt 0:00:21]} Bd7 {[%emt 0:00:31]} 39. Ke3 {[%emt 0:01:03]} Nc7 {[%emt 0:00:32]} 40. Kd4 {[%emt 0:00:00]} Ne8 {[%emt 0:00:00]} 41. c5 {[%emt 0:01:28]} dxc5+ {[%emt 0:01:20]} 42. Nxc5 {[%emt 0:00:30]} Rb8 {[%emt 0:03:19]} 43. Re3+ {[%emt 0:02:25]} Kd8 {[%emt 0:00:34]} 44. Re6 $4 {[%emt 0:08:50]} (44. Ne6+ $18 {and life is good for White.} Bxe6 45. fxe6) 44... Rb2 $4 {[%emt 0:03:05]} (44... Bxe6 $19 {avoids the disaster.} 45. fxe6 Rb2) 45. Nxd7 {[%emt 0:00:30]} Kxd7 {[%emt 0:09:08]} 46. Bc4 {[%emt 0:03:24]} Rc2 {[%emt 0:00:10]} 47. Ra6 {[%emt 0:00:05]} Rc3 {[%emt 0:01:16]} 48. Rxa7+ {[%emt 0:01:07]} Kd8 {[%emt 0:00:34]} 49. d6 {[%emt 0:00:14]} Rxc4+ {[%emt 0:01:03]} 50. Kxc4 {[%emt 0:00:12]} Nxd6+ {[%emt 0:00:01]} 51. Kd5 $18 {[%emt 0:00:17]} (51. Kc5 {[%emt 0:00:17]}) 51... Nb5 {[%emt 0:00:30]} 52. Rb7 {[%emt 0:00:30]} Nc3+ {[%emt 0:00:30]} 53. Ke6 {[%emt 0:00:30]} Ne4 {[%emt 0:00:00]} 54. Rf7 {[%emt 0:00:56]} (54. Rb4 Nf2 55. a4 Nxh3 56. Kxf6) 54... Nf2 {[%emt 0:00:00]} 55. Kxf6 {[%emt 0:00:15]} Nxh3 {[%emt 0:00:02]} 56. Rh7 {[%emt 0:00:08]} Ke8 {[%emt 0:00:52]} 57. a4 {[%emt 0:00:07]} Kd8 {[%emt 0:00:04]} 58. a5 {[%emt 0:00:04]} 1-0